bitfinex-derivatives/quotes_SOLF0:USTF0_20250206
["timestamp","ask_amount","ask_price","bid_price","bid_amount"]
[1738867967418,0.03436309,190.51,190.47,0.03694311]
[1738867967913,0.03436309,190.51,190.49,21.50628423]
[1738867968513,194.6076,190.62,190.49,21.50628423]
[1738867968718,5.7676,190.62,190.49,21.50628423]
[1738867969017,1.6076,190.62,190.52,21.50628423]
[1738867969318,1.6657,190.63,190.52,21.50628423]
[1738867969618,5.2452,190.61,190.52,21.50628423]
[1738867969817,5.2452,190.61,190.56,0.03559358]
[1738867970818,5.2452,190.61,190.57,5.246]
[1738867971220,5.2456,190.59,190.56,0.03559358]
[1738867971418,1.6657,190.63,190.56,0.03559358]
[1738867971720,5.2458,190.59,190.56,0.03559358]
[1738867972011,1.6657,190.63,190.56,0.03559358]
[1738867972409,5.8257,190.63,190.56,0.03559358]
[1738867973518,5.245,190.61,190.56,0.03559358]
[1738867974119,5.245,190.61,190.58,5.2458]
[1738867975021,3.131,190.67,190.56,0.03559358]
[1738867975320,109.3335747,190.68,190.58,21.50628423]
[1738867975521,5.243,190.69,190.65,5.2438]
[1738867975716,1.5985,190.7,190.58,21.50628423]
[1738867975923,1.5985,190.7,190.65,0.03345418]
[1738867976118,5.2436,190.66,190.65,0.03345418]
[1738867977916,5.2436,190.66,190.65,5.418e-05]
[1738867979322,0.03850818,190.67,190.65,5.418e-05]
[1738867979627,21.50628423,190.8,190.65,5.418e-05]
[1738867979628,1.6616,190.79,190.65,5.418e-05]
[1738867979826,1.6616,190.79,190.65,3.1782]
[1738867980127,5.2414,190.74,190.65,3.1782]
[1738867980325,21.50628423,190.77,190.61,21.50628423]
[1738867980525,21.50628423,190.77,190.61,23.02418423]
[1738867980727,5.2429,190.69,190.67,0.03996015]
[1738867981127,21.50628423,190.77,190.67,0.03996015]
[1738867981331,5.243,190.68,190.67,0.03996015]
[1738867981527,21.50628423,190.74,190.62,5.2445]
[1738867981725,5.2433,190.67,190.66,0.03934534]
[1738867981930,4.16,190.69,190.57,1.6713]
[1738867982429,5.2443,190.64,190.6,5.2452]
[1738867982623,4.16,190.69,190.57,1.6713]
[1738867983033,0.03673615,190.65,190.61,0.03539118]
[1738867983338,5.2447,190.62,190.61,0.03539118]
[1738867985433,0.03673615,190.65,190.61,0.03539118]
[1738867987033,5.2447,190.62,190.61,0.03539118]
[1738867987736,21.54302038,190.65,190.53,3.1162]
[1738867987937,5.2456,190.59,190.55,5.2464]
[1738867988535,21.50628423,190.68,190.53,1.5983]
[1738867989035,0.03971108,190.62,190.59,0.03916894]
[1738867991239,0.03971108,190.62,190.6,5.245]
[1738867992942,0.03971108,190.62,190.61,5.245]
[1738867995441,0.03971108,190.62,190.59,0.03916894]
[1738867995943,0.03971108,190.62,190.6,5.245]
[1738867998243,0.03971108,190.62,190.59,0.03916894]
[1738867998842,0.03971108,190.62,190.59,5.28436894]
[1738867999244,0.03971108,190.62,190.59,0.03916894]
[1738867999453,0.03971108,190.62,190.61,5.245]
[1738867999644,0.03971108,190.62,190.59,0.03916894]
[1738868000747,0.03971108,190.62,190.6,5.2452]
[1738868003742,5.2452,190.6,190.59,0.03916894]
[1738868004348,5.28461108,190.62,190.59,0.03916894]
[1738868004541,0.03971108,190.62,190.59,0.03916894]
[1738868004947,5.2452,190.61,190.59,0.03916894]
[1738868006743,5.2452,190.6,190.59,0.03916894]
[1738868008045,0.03971108,190.62,190.59,0.03916894]
[1738868008649,5.2452,190.6,190.59,0.03916894]
[1738868011551,5.2463,190.57,190.53,5.247]
[1738868011953,13.37867617,190.6,190.53,5.247]
[1738868012146,13.37867617,190.6,190.52,5.2472]
[1738868012649,5.2465,190.56,190.54,0.0387956]
[1738868012850,0.03766191,190.58,190.57,5.2461]
[1738868013045,0.03766191,190.58,190.54,0.0387956]
[1738868013750,0.03766191,190.58,190.55,5.2464]
[1738868014949,0.03766191,190.58,190.54,0.0387956]
[1738868015156,0.03766191,190.58,190.55,13.37867617]
[1738868015555,0.03766191,190.58,190.57,5.2461]
[1738868017251,0.03766191,190.58,190.54,0.0387956]
[1738868018057,0.03766191,190.58,190.55,5.2466]
[1738868019259,0.03766191,190.58,190.54,0.0387956]
[1738868019459,0.03766191,190.58,190.56,5.2463]
[1738868020859,0.03766191,190.58,190.55,5.2466]
[1738868021260,5.28356191,190.58,190.54,0.0387956]
[1738868021460,13.37867617,190.55,190.5,7.28330397]
[1738868021859,5.2474,190.53,190.5,7.28330397]
[1738868022062,13.37867617,190.55,190.5,7.28330397]
[1738868022660,0.03581908,190.54,190.51,0.03600799]
[1738868023757,5.2474,190.53,190.51,0.03600799]
[1738868023961,0.03581908,190.54,190.51,0.03600799]
[1738868024458,13.37867617,190.65,190.51,13.41468416]
[1738868024657,13.37867617,190.65,190.52,3.1711]
[1738868024858,5.2445,190.63,190.59,5.2454]
[1738868025662,5.28051908,190.63,190.59,5.28033514]
[1738868030462,5.28051908,190.63,190.59,0.03493514]
[1738868030463,5.245,190.61,190.59,0.03493514]
[1738868032769,5.2452,190.6,190.59,0.03493514]
[1738868033068,0.03601908,190.63,190.59,0.03493514]
[1738868033272,5.245,190.61,190.59,0.03493514]
[1738868033868,0.03601908,190.63,190.59,0.03493514]
[1738868034470,0.03601908,190.63,190.6,5.245]
[1738868035372,5.28041908,190.63,190.6,5.245]
[1738868038075,5.28041908,190.63,190.59,5.28033514]
[1738868038674,5.245,190.61,190.59,0.03493514]
[1738868041076,0.03601908,190.63,190.59,0.03493514]
[1738868041774,5.2449,190.62,190.59,5.28033514]
[1738868042273,0.03601908,190.63,190.59,0.03493514]
[1738868042475,5.2452,190.6,190.59,0.03493514]
[1738868043771,5.2452,190.6,190.59,3.514e-05]
[1738868043978,18.62387617,190.6,190.59,3.514e-05]
[1738868045178,13.37867617,190.6,190.51,7.28330397]
[1738868045476,13.37867617,190.57,190.51,7.28330397]
[1738868045670,17.51867617,190.57,190.51,7.28330397]
[1738868045877,5.2474,190.52,190.51,7.28330397]
[1738868046575,5.248,190.5,190.47,29.23697504]
[1738868046771,0.03664126,190.53,190.47,29.23697504]
[1738868046970,5.248,190.5,190.49,0.04006061]
[1738868049081,5.2475,190.52,190.49,0.04006061]
[1738868049383,0.03664126,190.53,190.49,0.04006061]
[1738868050788,5.2478,190.51,190.49,0.04006061]
[1738868052685,0.03664126,190.53,190.49,0.04006061]
[1738868052986,5.248,190.5,190.49,0.04006061]
[1738868053187,5.248,190.5,190.49,6.061e-05]
[1738868053387,5.2491,190.47,190.42,17.38040397]
[1738868053889,5.2485,190.49,190.44,5.2494]
[1738868054091,13.37867617,190.5,190.44,5.2494]
[1738868054490,5.2486,190.48,190.45,5.28822967]
[1738868054691,0.03624289,190.49,190.45,0.03892967]
[1738868055186,0.03624289,190.49,190.46,5.249]
[1738868056689,0.03624289,190.49,190.45,0.03892967]
[1738868059192,13.37867617,190.47,190.45,0.03892967]
[1738868059598,5.2491,190.46,190.45,0.03892967]
[1738868060694,5.2505,190.41,190.37,3.2066]
[1738868060892,13.37867617,190.43,190.36,1.5676]
[1738868061693,0.03936416,190.41,190.38,0.03802345]
[1738868063586,0.03936416,190.41,190.39,5.251]
[1738868063785,0.03936416,190.41,190.38,0.03802345]
[1738868065194,5.28996416,190.41,190.38,0.03802345]
[1738868066096,5.28996416,190.41,190.38,5.28922345]
[1738868066391,0.03936416,190.41,190.38,0.03802345]
[1738868067393,0.03936416,190.41,190.4,5.2507]
[1738868068100,5.28996416,190.41,190.38,5.28922345]
[1738868068294,5.28996416,190.41,190.38,0.03802345]
[1738868068791,0.03936416,190.41,190.38,0.03802345]
[1738868069398,5.251,190.39,190.38,0.03802345]
[1738868072392,5.251,190.39,190.31,5.2532]
[1738868072589,13.37867617,190.36,190.27,87.11276157]
[1738868072794,13.37867617,190.33,190.27,87.11276157]
[1738868072996,13.37867617,190.33,190.27,92.36696157]
[1738868073292,13.37867617,190.33,190.27,87.11276157]
[1738868073693,0.03606559,190.32,190.28,0.03598631]
[1738868074293,5.2538,190.29,190.28,0.03598631]
[1738868075599,5.254,190.28,190.27,87.11276157]
[1738868076088,13.37867617,190.3,190.26,145.18793596]
[1738868076289,18.63297617,190.27,190.26,90.45934928]
[1738868076493,18.63297617,190.27,190.26,37.75272055]
[1738868077194,5.254,190.29,190.26,37.75272055]
[1738868077399,13.37867617,190.3,190.26,37.75272055]
[1738868078497,5.254,190.29,190.26,37.75272055]
[1738868078701,13.37867617,190.3,190.26,37.75272055]
[1738868078896,5.2543,190.28,190.26,37.75272055]
[1738868079298,13.37867617,190.3,190.26,37.75272055]
[1738868080198,5.2538,190.29,190.26,37.75272055]
[1738868080600,0.03606559,190.32,190.26,37.75272055]
[1738868081104,5.28926559,190.32,190.27,5.2542]
[1738868082197,5.2533,190.31,190.26,37.75272055]
[1738868083200,0.03606559,190.32,190.28,5.2539]
[1738868083401,0.03606559,190.32,190.26,37.75272055]
[1738868083802,0.03606559,190.32,190.31,5.2532]
[1738868084898,0.03606559,190.32,190.3,0.03486789]
[1738868086408,0.03606559,190.32,190.31,5.2532]
[1738868088105,0.03606559,190.32,190.3,5.28836789]
[1738868088312,0.03606559,190.32,190.3,0.03486789]
[1738868088610,5.2532,190.31,190.3,0.03486789]
[1738868088809,0.03606559,190.32,190.26,37.75272055]
[1738868089008,13.37867617,190.28,190.26,37.75272055]
[1738868089414,0.03606559,190.32,190.26,37.75272055]
[1738868089910,0.03606559,190.32,190.27,0.03547674]
[1738868091812,0.03606559,190.32,190.29,5.2537]
[1738868092110,0.03606559,190.32,190.27,0.03547674]
[1738868092606,0.03606559,190.32,190.28,5.2539]
[1738868092912,0.03606559,190.32,190.27,0.03547674]
[1738868093812,0.03606559,190.32,190.29,5.2536]
[1738868094513,5.28916559,190.32,190.27,5.28967674]
[1738868094714,0.03606559,190.32,190.27,0.03547674]
[1738868095104,4.14,190.36,190.27,0.03547674]
[1738868095713,4.14,190.36,190.3,5.2533]
[1738868095714,5.2522,190.35,190.3,5.2533]
[1738868096215,4.14,190.36,190.31,0.03515794]
[1738868096216,0.03480744,190.34,190.31,0.03515794]
[1738868097007,5.2529,190.33,190.31,0.03515794]
[1738868097209,13.41348361,190.34,190.31,0.03515794]
[1738868097411,5.2529,190.32,190.31,0.03515794]
[1738868098514,5.2527,190.33,190.31,0.03515794]
[1738868098813,13.41348361,190.34,190.31,0.03515794]
[1738868099014,5.2529,190.33,190.31,0.03515794]
[1738868099816,5.2529,190.32,190.31,0.03515794]
[1738868101021,5.2542,190.28,190.26,37.75272055]
[1738868101510,13.37867617,190.29,190.26,37.75272055]
[1738868101709,5.2543,190.27,190.26,37.75272055]
[1738868103118,5.2543,190.27,190.25,217.82042802]
[1738868103119,5.2546,190.26,190.25,217.82042802]
[1738868103309,18.63327617,190.26,190.25,217.82042802]
[1738868106819,7.26760647,190.28,190.25,217.82042802]
[1738868107525,0.03664843,190.28,190.25,217.82042802]
[1738868107725,0.03664843,190.28,190.25,223.07522802]
[1738868108422,0.03664843,190.28,190.25,217.82042802]
[1738868108623,86.19241909,190.31,190.25,217.82042802]
[1738868108823,86.19241909,190.31,190.26,1.625]
[1738868109127,42.39491949,190.32,190.26,1.625]
[1738868109433,5.2535,190.31,190.26,1.625]
[1738868109626,5.2535,190.31,190.27,5.2541]
[1738868109829,0.03404145,190.3,190.27,5.2541]
[1738868110023,0.03404145,190.3,190.26,1.625]
[1738868111432,5.2541,190.28,190.26,1.625]
[1738868111728,13.37867617,190.29,190.25,217.82042802]
[1738868111934,13.37867617,190.26,190.25,109.23149346]
[1738868112127,13.37867617,190.26,190.25,90.57299346]
[1738868112128,18.63327617,190.26,190.25,90.57299346]
[1738868112327,22.77327617,190.26,190.25,19.0994506]
[1738868112527,22.77327617,190.26,190.25,17.8142506]
[1738868112929,5.2549,190.25,190.24,181.48491995]
[1738868113231,18.63357617,190.25,190.24,28.46443354]
[1738868113932,5.2549,190.25,190.24,28.46443354]
[1738868114128,5.2549,190.25,190.24,18.41323354]
[1738868114532,5.2549,190.25,190.23,0.03419293]
[1738868114728,5.2554,190.23,190.22,16.80287408]
[1738868115036,18.63407617,190.23,190.22,16.80287408]
[1738868115332,13.37867617,190.23,190.22,16.80287408]
[1738868116535,66.33321529,190.23,190.22,16.80287408]
[1738868117840,36.09942639,190.23,190.21,198.62443813]
[1738868118741,105.61568393,190.22,190.21,198.62443813]
[1738868118934,60.58866726,190.22,190.21,198.62443813]
[1738868119336,13.37867617,190.23,190.21,198.62443813]
[1738868120451,203.42430602,190.22,190.21,198.62443813]
[1738868120847,195.83380602,190.22,190.21,198.62443813]
[1738868121150,195.83380602,190.22,190.21,203.88043813]
[1738868121352,195.83380602,190.22,190.21,198.62443813]
[1738868122648,376.36250682,190.22,190.21,198.62443813]
[1738868124352,201.08950602,190.22,190.21,82.12750357]
[1738868125347,195.83380602,190.22,190.21,82.12750357]
[1738868125950,108.357508,190.22,190.21,82.12750357]
[1738868128248,103.297208,190.22,190.21,82.12750357]
[1738868128446,7.21700151,190.22,190.21,83.72820357]
[1738868130149,7.21700151,190.22,190.21,88.98420357]
[1738868130353,11.07180453,190.23,190.21,83.72820357]
[1738868130651,27.18750373,190.24,190.21,83.72820357]
[1738868130853,15.11120373,190.25,190.24,5.2552]
[1738868132554,0.03554002,190.26,190.25,5.2549]
[1738868133154,121.31169723,190.27,190.26,5.2546]
[1738868133355,121.31169723,190.27,190.26,18.63327617]
[1738868133648,155.67646068,190.28,190.27,5.2543]
[1738868133849,86.79108079,190.36,190.26,13.37867617]
[1738868134055,86.79108079,190.36,190.29,13.37867617]
[1738868134254,0.037302,190.33,190.29,13.41232088]
[1738868134551,5.290002,190.33,190.29,13.41232088]
[1738868134762,0.037302,190.33,190.29,0.03364471]
[1738868135056,5.2535,190.3,190.29,0.03364471]
[1738868137547,5.255,190.25,190.21,82.09287688]
[1738868138356,5.2552,190.24,190.21,82.09287688]
[1738868138655,0.03876679,190.24,190.21,82.13027786]
[1738868139654,5.2557,190.23,190.21,82.13027786]
[1738868140849,0.03876679,190.24,190.21,82.13027786]
[1738868140850,5.2557,190.22,190.21,82.13027786]
[1738868142559,5.2555,190.23,190.21,82.13027786]
[1738868144564,0.03876679,190.24,190.21,82.13027786]
[1738868144763,5.2557,190.22,190.21,82.13027786]
[1738868144962,0.03876679,190.24,190.21,82.13027786]
[1738868145263,5.2557,190.23,190.21,82.13027786]
[1738868146463,0.03876679,190.24,190.21,82.13027786]
[1738868146662,5.2557,190.22,190.21,82.13027786]
[1738868147760,5.29416679,190.24,190.21,82.13027786]
[1738868147962,0.03876679,190.24,190.21,82.13027786]
[1738868148456,5.2556,190.23,190.21,82.13027786]
[1738868149270,0.03876679,190.24,190.22,5.2557]
[1738868149567,0.03876679,190.24,190.21,82.13027786]
[1738868150566,0.03876679,190.24,190.23,5.2554]
[1738868150860,0.03876679,190.24,190.21,82.13027786]
[1738868151059,5.29396679,190.24,190.21,82.13027786]
[1738868152565,5.2556,190.23,190.21,82.13027786]
[1738868152867,0.03876679,190.24,190.21,82.13027786]
[1738868153458,5.2557,190.22,190.21,82.13027786]
[1738868155071,0.03876679,190.24,190.21,82.13027786]
[1738868156368,0.03876679,190.24,190.21,87.38617786]
[1738868156569,0.03876679,190.24,190.21,82.13027786]
[1738868156771,5.29396679,190.24,190.21,82.13027786]
[1738868157673,0.03876679,190.24,190.21,82.13027786]
[1738868157868,5.29396679,190.24,190.21,82.13027786]
[1738868159270,0.03876679,190.24,190.21,87.38617786]
[1738868159470,0.03876679,190.24,190.21,82.13027786]
[1738868159970,0.03876679,190.24,190.21,87.38627786]
[1738868160373,0.03876679,190.24,190.21,87.38617786]
[1738868160573,0.03876679,190.24,190.21,82.13027786]
[1738868161077,5.2554,190.23,190.21,82.13027786]
[1738868161277,0.03876679,190.24,190.21,82.13027786]
[1738868161872,5.2557,190.22,190.21,82.13027786]
[1738868163580,5.2557,190.22,190.21,74.53517786]
[1738868166278,0.03876679,190.24,190.21,74.53517786]
[1738868166279,5.29416679,190.24,190.21,74.53517786]
[1738868166782,0.03876679,190.24,190.21,74.53517786]
[1738868166982,0.03876679,190.24,190.23,5.2554]
[1738868167785,21.73617859,190.29,190.22,13.37867617]
[1738868167984,21.73617859,190.29,190.25,13.37867617]
[1738868168283,21.73617859,190.34,190.25,13.37867617]
[1738868168781,5.2535,190.3,190.22,13.37867617]
[1738868168982,5.2535,190.3,190.28,0.03861972]
[1738868169172,0.03827379,190.31,190.28,0.03861972]
[1738868169379,0.03827379,190.31,190.22,13.37867617]
[1738868169577,0.03827379,190.31,190.29,5.2538]
[1738868169773,0.03827379,190.31,190.28,0.03707282]
[1738868170176,5.2535,190.3,190.28,0.03707282]
[1738868170483,0.03827379,190.31,190.28,0.03707282]
[1738868171783,5.2538,190.29,190.28,0.03707282]
[1738868172882,13.37867617,190.3,190.28,0.03707282]
[1738868173084,18.63217617,190.3,190.28,0.03707282]
[1738868173280,13.37867617,190.3,190.28,0.03707282]
[1738868173689,13.37867617,190.3,190.21,74.49777688]
[1738868174085,13.37867617,190.27,190.21,74.49777688]
[1738868175082,0.03722985,190.26,190.22,0.03382087]
[1738868175581,5.2554,190.23,190.22,0.03382087]
[1738868177387,5.2551,190.25,190.22,0.03382087]
[1738868178084,5.2552,190.24,190.22,0.03382087]
[1738868178885,5.2554,190.23,190.22,0.03382087]
[1738868179690,13.37867617,190.24,190.21,69.43397688]
[1738868179890,5.2557,190.22,190.21,39.17637688]
[1738868180090,13.37867617,190.24,190.2,43.51879481]
[1738868180295,13.37867617,190.21,190.18,290.37587192]
[1738868180693,5.2565,190.19,190.18,290.37587192]
[1738868180896,9.3765,190.19,190.18,290.41275618]
[1738868181193,9.3765,190.19,190.18,222.65419331]
[1738868181392,9.3765,190.19,190.18,214.37779331]
[1738868181592,9.3765,190.19,190.18,188.15049331]
[1738868181797,9.3765,190.19,190.18,177.74259331]
[1738868183093,9.3765,190.19,190.18,128.95122162]
[1738868183992,9.3765,190.19,190.18,92.10427876]
[1738868184299,9.3765,190.19,190.18,32.30671589]
[1738868184994,4.12,190.19,190.14,572.59684384]
[1738868185197,18.63627617,190.15,190.14,455.65092272]
[1738868185395,18.63627617,190.15,190.14,422.59482272]
[1738868185901,32.01495234,190.15,190.14,373.80345103]
[1738868186100,32.01495234,190.15,190.14,345.23945103]
[1738868186303,32.01495234,190.15,190.14,319.18595103]
[1738868186498,32.01495234,190.15,190.14,282.33900817]
[1738868187102,98.97951934,190.15,190.14,257.82384877]
[1738868187499,80.34324317,190.15,190.14,257.82384877]
[1738868188903,84.46324317,190.15,190.14,257.82384877]
[1738868190606,71.084567,190.15,190.14,257.82384877]
[1738868190810,71.104567,190.15,190.14,257.82384877]
[1738868192708,165.02631272,190.15,190.14,257.82384877]
[1738868193907,165.02631272,190.15,190.14,40.04194483]
[1738868194807,160.88631272,190.15,190.14,40.04194483]
[1738868195011,158.35491272,190.15,190.14,40.04194483]
[1738868195312,222.50797704,190.15,190.14,40.04194483]
[1738868195911,222.50797704,190.15,190.14,45.29984483]
[1738868197310,219.97667704,190.15,190.14,45.29984483]
[1738868197507,219.97667704,190.15,190.14,46.93544483]
[1738868197906,0.04014361,190.16,190.14,41.67754483]
[1738868198107,0.04014361,190.16,190.15,5.2576]
[1738868199209,0.04014361,190.16,190.14,41.67754483]
[1738868199210,28.77827753,190.18,190.16,5.2572]
[1738868199806,28.77827753,190.18,190.14,41.67754483]
[1738868200006,28.77827753,190.18,190.14,46.93514483]
[1738868200209,28.81861773,190.18,190.14,41.67754483]
[1738868200409,28.81861773,190.18,190.16,5.2573]
[1738868200610,7.23490958,190.18,190.14,41.67754483]
[1738868200810,2.17310958,190.18,190.14,41.67754483]
[1738868201008,37.7324139,190.19,190.14,41.67754483]
[1738868201307,19.6524139,190.19,190.16,21.51989234]
[1738868201502,57.55655507,190.21,190.2,5.2563]
[1738868201700,55.02595507,190.21,190.2,5.2563]
[1738868202311,0.03732066,190.22,190.2,5.2563]
[1738868202610,0.03732066,190.22,190.19,21.55750117]
[1738868203407,55.02595507,190.24,190.19,21.55750117]
[1738868203612,55.02595507,190.24,190.22,21.51989234]
[1738868203910,31.04285507,190.24,190.22,21.51989234]
[1738868204210,23.02335507,190.24,190.22,21.51989234]
[1738868204706,6.8589,190.33,190.22,21.51989234]
[1738868204911,0.03883791,190.25,190.22,21.51989234]
[1738868205112,6.8589,190.33,190.22,21.51989234]
[1738868205405,0.03607701,190.25,190.22,21.55733227]
[1738868205610,5.253,190.32,190.25,5.2547]
[1738868206013,0.03634279,190.3,190.27,0.03724488]
[1738868207612,5.2539,190.29,190.27,0.03724488]
[1738868208210,0.03634279,190.3,190.27,0.03724488]
[1738868209611,0.03634279,190.3,190.27,5.29134488]
[1738868210212,0.03634279,190.3,190.27,0.03724488]
[1738868211024,4.279e-05,190.3,190.29,5.2538]
[1738868212311,4.279e-05,190.3,190.27,0.03724488]
[1738868212517,4.279e-05,190.3,190.28,5.254]
[1738868212709,4.279e-05,190.3,190.27,0.03724488]
[1738868213618,4.279e-05,190.3,190.28,5.254]
[1738868214219,4.279e-05,190.3,190.27,0.03724488]
[1738868214514,5.25364279,190.3,190.27,0.03724488]
[1738868214720,4.279e-05,190.3,190.27,0.03724488]
[1738868215718,5.25354279,190.3,190.27,0.03724488]
[1738868216315,4.279e-05,190.3,190.27,0.03724488]
[1738868216818,4.279e-05,190.3,190.27,13.45694332]
[1738868217014,4.279e-05,190.3,190.29,5.2538]
[1738868221820,31.7226846,190.46,190.27,13.45694332]
[1738868222017,35.0496846,190.46,190.34,13.41969844]
[1738868222218,5.2507,190.41,190.34,13.41969844]
[1738868222421,35.0496846,190.46,190.31,13.41969844]
[1738868222621,13.41969844,190.43,190.31,13.41969844]
[1738868222922,5.29086745,190.39,190.35,5.29050673]
[1738868223123,0.03966745,190.39,190.35,0.03850673]
[1738868223426,5.2513,190.38,190.35,0.03850673]
[1738868223826,0.03966745,190.39,190.35,0.03850673]
[1738868224028,5.2515,190.38,190.35,0.03850673]
[1738868224329,5.2515,190.38,190.35,5.29050673]
[1738868227321,0.03966745,190.39,190.35,0.03850673]
[1738868227733,0.03966745,190.39,190.27,193.0]
[1738868227734,5.2524,190.34,190.3,5.2534]
[1738868228830,5.28615448,190.34,190.3,5.28839233]
[1738868229031,0.03375448,190.34,190.3,0.03499233]
[1738868230134,0.03375448,190.34,190.33,5.2527]
[1738868233833,0.03375448,190.34,190.3,0.03499233]
[1738868234037,5.2527,190.33,190.3,5.28839233]
[1738868234230,0.03375448,190.34,190.3,0.03499233]
[1738868234435,0.03375448,190.34,190.33,5.2527]
[1738868234635,5.448e-05,190.34,190.33,5.2527]
[1738868234831,21.65797594,190.4,190.31,13.41969844]
[1738868235037,21.65797594,190.4,190.39,5.251]
[1738868235338,86.31421115,190.41,190.39,5.251]
[1738868235836,86.31421115,190.41,190.38,5.2513]
[1738868236043,86.31421115,190.41,190.38,0.03982401]
[1738868236934,86.31421115,190.41,190.39,5.2509]
[1738868237434,86.31421115,190.41,190.38,0.03982401]
[1738868237635,91.56481115,190.41,190.38,0.03982401]
[1738868237836,86.31421115,190.41,190.38,0.03982401]
[1738868238036,21.83295157,190.4,190.38,0.03982401]
[1738868238235,21.83295157,190.4,190.38,5.29112401]
[1738868238933,21.83295157,190.4,190.39,5.251]
[1738868239131,5.157e-05,190.4,190.39,5.251]
[1738868240541,0.03724054,190.42,190.39,5.251]
[1738868241940,0.03724054,190.42,190.4,5.2505]
[1738868242440,0.03724054,190.42,190.38,5.29112401]
[1738868242642,0.03724054,190.42,190.38,0.03982401]
[1738868242840,0.03724054,190.42,190.38,13.45952245]
[1738868243242,0.03724054,190.42,190.41,5.2505]
[1738868243442,0.03724054,190.42,190.38,13.45952245]
[1738868243636,0.03724054,190.42,190.38,0.03982401]
[1738868243841,0.03724054,190.42,190.39,5.2508]
[1738868244338,0.03724054,190.42,190.38,5.29102401]
[1738868244542,0.03724054,190.42,190.38,0.03982401]
[1738868245548,0.03724054,190.42,190.32,13.41969844]
[1738868245742,3.31724054,190.42,190.32,13.41969844]
[1738868246045,3.31724054,190.42,190.29,13.41969844]
[1738868246243,5.2515,190.38,190.34,5.2522]
[1738868246640,5.29016059,190.38,190.34,5.29029445]
[1738868247647,0.03866059,190.38,190.34,0.03809445]
[1738868248244,0.03866059,190.38,190.35,13.41969844]
[1738868248443,0.03866059,190.38,190.37,5.2516]
[1738868248645,6.059e-05,190.38,190.37,5.2516]
[1738868250344,58.22120421,190.44,190.43,5.2499]
[1738868250546,5.2489,190.47,190.43,5.2499]
[1738868251051,1.5928,190.48,190.36,21.4378095]
[1738868251248,21.4378095,190.46,190.32,193.0]
[1738868251443,0.03469102,190.44,190.4,0.03608954]
[1738868252146,0.03469102,190.44,190.32,193.0]
[1738868252350,21.4378095,190.43,190.27,21.4378095]
[1738868252743,5.2511,190.39,190.34,5.2523]
[1738868252944,21.4378095,190.43,190.34,5.2523]
[1738868253349,0.03398451,190.4,190.37,0.03603072]
[1738868253755,5.2515,190.38,190.34,5.2523]
[1738868254155,0.03398451,190.4,190.27,21.4378095]
[1738868254355,5.2516,190.37,190.27,21.4378095]
[1738868254858,5.2513,190.38,190.34,5.2524]
[1738868255255,5.28752222,190.38,190.34,5.2524]
[1738868255555,5.28752222,190.38,190.35,5.2521]
[1738868255861,5.2516,190.37,190.31,0.03927073]
[1738868256055,5.2516,190.37,190.33,5.2526]
[1738868256356,0.03622222,190.38,190.33,5.2526]
[1738868256558,5.2519,190.36,190.33,5.2526]
[1738868257059,5.2519,190.36,190.31,0.03927073]
[1738868257360,5.2519,190.36,190.32,5.2529]
[1738868258761,1.71302222,190.38,190.31,0.03927073]
[1738868259264,1.71302222,190.38,190.35,5.2519]
[1738868259455,0.03622222,190.38,190.31,0.03927073]
[1738868259860,0.03622222,190.38,190.37,5.2516]
[1738868263359,2.222e-05,190.38,190.37,5.2516]
[1738868275070,5.2489,190.47,190.39,5.2509]
[1738868275373,17.15500756,190.48,190.36,13.40200756]
[1738868275575,5.2497,190.44,190.36,13.40200756]
[1738868275774,17.15500756,190.48,190.42,5.2501]
[1738868276272,0.03772615,190.47,190.43,0.03840023]
[1738868276574,0.03772615,190.47,190.43,5.28810023]
[1738868276775,5.28662615,190.47,190.43,0.03840023]
[1738868277675,5.28662615,190.47,190.44,5.2494]
[1738868280478,5.2491,190.46,190.43,0.03840023]
[1738868280679,0.03772615,190.47,190.43,0.03840023]
[1738868281079,5.2491,190.46,190.43,0.03840023]
[1738868281283,0.03772615,190.47,190.41,5.2504]
[1738868281879,5.2495,190.45,190.41,5.2504]
[1738868282075,0.03772615,190.47,190.36,13.40200756]
[1738868282378,17.15500756,190.48,190.4,0.03845483]
[1738868282575,0.03328089,190.43,190.4,0.03845483]
[1738868282976,0.03328089,190.43,190.42,5.2502]
[1738868286178,0.03328089,190.43,190.41,5.2504]
[1738868286583,0.03328089,190.43,190.4,0.03845483]
[1738868286782,0.03328089,190.43,190.42,5.2502]
[1738868288786,7.28357824,190.51,190.48,5.2483]
[1738868289081,13.40200756,190.5,190.36,13.40200756]
[1738868289584,5.2491,190.46,190.36,13.40200756]
[1738868289884,0.03910574,190.43,190.42,5.25]
[1738868290684,0.03910574,190.43,190.41,5.2504]